fUSD/lending_fUSD_20240123
["ID","MTS","AMOUNT","RATE_DAILY","PERIOD"]
[312557549,1705991437990,-836.0,0.000234,2]
[312557551,1705991437999,-499.99,0.0002439,2]
[312557554,1705991438009,-2287.0,0.000245,2]
[312557556,1705991438018,-9435.0,0.000246,2]
[312557557,1705991438028,-250.0,0.00025072,2]
[312557560,1705991438037,-250.0,0.00025083,2]
[312557562,1705991438046,-187.35,0.00025096,2]
[312557564,1705991438056,-584.9,0.00025098,2]
[312557566,1705991438065,-213.73,0.00025178,2]
[312557568,1705991438074,-270.8,0.00025258,2]
[312557570,1705991438083,-16398.08,0.00025303,2]
[312557572,1705991438094,-357.62,0.00025653,2]
[312557574,1705991438103,-156.62,0.00025844,2]
[312557576,1705991438113,-207.0,0.00026005,6]
[312557578,1705991438122,-266.5,0.00026114,2]
[312557580,1705991438132,-729.2,0.00026157,2]
[312557582,1705991438141,-3172.40086865,0.00026505,7]
[312557584,1705991438150,-1552.68,0.00026575,2]
[312557586,1705991438160,-1000.0,0.00026575,2]
[312557588,1705991438169,-584.9,0.00026742,2]
[312557590,1705991438178,-223.7573,0.000269,2]
[312557592,1705991438188,-199.29466552,0.00026996,2]
[312557594,1705991438197,-200.05817065,0.00026997,2]
[312557596,1705991438206,-1311.48784288,0.00026997,2]
[312557598,1705991438215,-3861.82803741,0.00026998,2]
[312557600,1705991438224,-45913.70391366,0.00026998,2]
[312557617,1705991440609,-425.024,0.000234,2]
[312557651,1705991442443,-26.165,0.000234,2]
[312557653,1705991442453,-1391.612286,0.00026998,2]
[312557658,1705991442715,-4401.69940052,0.00026998,2]
[312557659,1705991442727,-1267.53629767,0.00026998,2]
[312557660,1705991445952,-214.0,0.000238,2]
[312557661,1705991445962,-1250.0,0.000238,2]
[312557662,1705991445973,-703.77944775,0.00026997,2]
[312557663,1705991446009,-1797.4336045,0.00026997,2]
[312557664,1705991446020,-1456.99016696,0.00026998,2]
[312557665,1705991446063,-7145.23321824,0.00026998,2]
[312557666,1705991446121,-1816.06454979,0.00026998,2]
[312557667,1705991446132,-672.6304751,0.00026998,2]
[312557668,1705991446143,-312.7225249,0.00026998,2]
[312557669,1705991446153,-131.54805053,0.00026998,2]
[312557670,1705991446179,-1055.41892011,0.00026998,2]
[312557671,1705991446188,-155.63064485,0.00026998,2]
[312557672,1705991446198,-451.37806424,0.00026998,2]
[312557673,1705991446208,-155.74389631,0.00026998,2]
[312557674,1705991446218,-211.75204362,0.00026998,2]
[312557675,1705991446227,-2798.14984387,0.00026999,2]
[312557676,1705991446236,-150.01,0.00026999,2]
[312557677,1705991446246,-181.87084846,0.00026999,2]
[312557678,1705991446255,-3626.06527258,0.00026999,2]
[312557679,1705991446264,-1789.34453068,0.00026999,2]
[312557680,1705991446273,-14246.81552975,0.00027,2]
[312557681,1705991446286,-19845.27820285,0.00027,2]
[312557683,1705991446305,-2347.46759022,0.00027,2]
[312557696,1705991460067,155.0,0.00018253,2]
[312557697,1705991464572,2324.54716679,0.00020281,2]
[312557698,1705991465605,-204.0,0.0002339,2]
[312557699,1705991474598,544.70092781,0.00020281,2]
[312557700,1705991479676,484.29907219,0.00020281,2]
[312557701,1705991479712,118.59017861,0.00020281,2]
[312557702,1705991536186,1233.0,0.00023799,2]
[312557703,1705991565661,-1372.47036357,0.00023799,2]
[312557704,1705991565682,-1233.0,0.000238,2]
[312557705,1705991565702,-724.36,0.000238,2]
[312557706,1705991565721,-537.16963643,0.000238,2]
[312557707,1705991565836,-184.26036357,0.000238,2]
[312557708,1705991565871,-737.49,0.000238,2]
[312557709,1705991565904,-869.0,0.000238,2]
[312557710,1705991565936,-319.0,0.000238,2]
[312557711,1705991565970,-608.09840421,0.00024,7]
[312557712,1705991565997,-184.26036357,0.00024,7]
[312557713,1705991566013,-737.49,0.00024,7]
[312557714,1705991566029,-869.0,0.00024,7]
[312557715,1705991566041,-319.0,0.00024,7]
[312557716,1705991566075,-454.55210087,0.00024,7]
[312557717,1705991566085,-343.99,0.000248,2]
[312557718,1705991566095,-350.0,0.00025,3]
[312557719,1705991606376,-294.08109517,0.00025929,2]
[312557720,1705991606397,-187.33,0.00026699,2]
[312557721,1705991606418,-213.73,0.00026717,2]
[312557722,1705991606438,-729.34,0.00026738,2]
[312557723,1705991606458,-1747.51890483,0.00026739,2]
[312557724,1705991628881,-726.0,0.00024,2]
[312557725,1705992244489,-636.4324103,0.000237,2]
[312557726,1705992244518,-384.62388256,0.00023797,2]
[312557727,1705992244545,-12311.26507226,0.00023798,2]
[312557728,1705992244573,-150.0,0.00023799,2]
[312557729,1705992244601,-1537.67863488,0.000238,2]
[312557736,1705992631623,-350.0,0.00021918,2]
[312557737,1705992631679,-49.76,0.00021918,2]
[312557738,1705992631688,-160.6489126,0.000237,2]
[312557739,1705992631698,-639.5910874,0.000238,2]
[312557740,1705992631710,-306.4089126,0.000238,2]
[312557741,1705992631720,-1854.0,0.000238,2]
[312557742,1705992631730,-45.5152628,0.000238,2]
[312557743,1705992631742,-1204.4847372,0.000238,2]
[312557744,1705992631752,-1233.0,0.000238,2]
[312557745,1705992631762,-250.0,0.000238,2]
[312557746,1705992631771,-16325.95,0.000238,2]
[312557747,1705992631781,-736.322,0.000238,2]
[312557748,1705992631791,-2444.955,0.000238,2]
[312557749,1705992631801,-2906.0,0.000238,2]
[312557750,1705992631811,-157.528,0.000238,2]
[312557751,1705992631820,-197.0,0.000238,2]
[312557752,1705992631830,-209.925,0.000238,2]
[312557753,1705992631839,-256.212,0.000238,2]
[312557754,1705992631848,-218.835,0.000238,2]
[312557755,1705992631857,-176.0,0.000238,2]
[312557756,1705992631867,-237.289,0.000238,2]
[312557757,1705992631876,-326.79,0.00023875,2]
[312557758,1705992631887,-0.83,0.00024,2]
[312557759,1705992631896,-3172.40086865,0.00025,7]
[312557760,1705992631905,-250.0,0.00025552,2]
[312557761,1705992631915,-207.0,0.0002562,2]
[312557762,1705992631924,-783.36,0.00025661,2]
[312557763,1705992631933,-2000.0,0.00025749,2]
[312557764,1705992631942,-500.0,0.00025783,2]
[312557765,1705992631952,-595.93,0.00025806,2]
[312557766,1705992631961,-150.0,0.00025863,2]
[312557767,1705992631971,-970.03,0.00025888,2]
[312557768,1705992631980,-156.54,0.00025968,2]
[312557769,1705992631989,-326.79,0.00026139,2]
[312557770,1705992631999,-323.91,0.00026278,2]
[312557771,1705992632008,-298.92,0.00026278,2]
[312557772,1705992632018,-414.07,0.00026278,2]
[312557773,1705992632027,-9104.69951774,0.00026372,2]
[312557774,1705992632039,-456.81059646,0.00026372,2]
[312557775,1705992632079,-329.66712704,0.00026372,2]
[312557776,1705992632090,-1174.56017211,0.00026372,2]
[312557779,1705992632111,-9606.00301058,0.00026372,2]
[312557793,1705992637602,-2113.5177817,0.00026372,2]
[312557794,1705992637614,-2333.36605109,0.00026372,2]
[312557795,1705992637659,-2125.0,0.00026372,2]
[312557796,1705992637670,-491.64613668,0.00026372,2]
[312557797,1705992637830,-5096.04734155,0.00026372,2]
[312557798,1705992637842,-122924.96833502,0.00026372,2]
[312557799,1705992637851,-206.89543955,0.00026397,2]
[312557800,1705992637860,-1293.9,0.00026575,2]
[312557801,1705992637869,-1000.0,0.00026575,2]
[312557802,1705992637878,-6281.75669387,0.00026739,2]
[312557803,1705992637888,-153.16563151,0.00026799,3]
[312557804,1705992637897,-385.06552269,0.00026897,2]
[312557805,1705992637906,-8502.23111928,0.00026898,2]
[312557806,1705992637915,-57426.55084427,0.00026899,2]
[312557813,1705992638055,-1943.77528136,0.00026899,2]
[312557815,1705992638069,-916.156,0.00026899,2]
[312557817,1705992638082,-994.59480069,0.00026899,2]
[312557821,1705992638106,-5576.45420676,0.00026899,2]
[312557914,1705992640146,-4126.8,0.00026899,2]
[312557915,1705992640890,-203.712,0.000238,2]
[312557916,1705992640900,-180.719,0.000238,2]
[312557917,1705992640909,-2382.88141176,0.00026899,2]
[312557918,1705992640947,-49581.94815516,0.00026899,2]
[312557919,1705992640957,-659.6227,0.00026899,2]
[312557920,1705992640967,-1000.0,0.000269,2]
[312557921,1705992640976,-457.5831,0.00026909,2]
[312557922,1705992640985,-122766.7012443,0.00026997,2]
[312557923,1705992640994,-10072.2030487,0.00026997,2]
[312557924,1705992641003,-5288.0106968,0.00026997,2]
[312557925,1705992641013,-150.95099668,0.00026999,2]
[312557926,1705992641023,-10405.49902411,0.00027,2]
[312557927,1705992641065,-350.55781886,0.00027,2]
[312557930,1705992641078,-2049.78330366,0.00027,2]
[312557931,1705992641091,-321.76073503,0.00027,2]
[312557932,1705992641102,-557.57111248,0.00027,2]
[312557947,1705992642730,-1017.312,0.00027,2]
[312557948,1705992642742,-1012.97035628,0.00027,2]
[312557949,1705992642766,-1700.0,0.00027,2]
[312557950,1705992642780,-252.42,0.00027,2]
[312557951,1705992642792,-4546.13435767,0.00027,2]
[312557952,1705992642803,-420.71593525,0.00027,2]
[312557953,1705992642812,-400.0,0.00027,3]
[312557954,1705992642822,-374.82167131,0.00027009,2]
[312557955,1705992642831,-160.29184149,0.00027009,2]
[312557956,1705992642841,-237.61338996,0.00027009,2]
[312557957,1705992642851,-480.22464599,0.00027009,2]
[312557958,1705992642860,-3873.81434557,0.00027009,2]
[312557959,1705992642869,-322.16947364,0.00027009,2]
[312557960,1705992642878,-8586.93371012,0.00027009,2]
[312557961,1705992642889,-3598.19543051,0.00027009,2]
[312557962,1705992642901,-3358.41649054,0.00027009,2]
[312557963,1705992642913,-891.55147034,0.00027009,2]
[312557964,1705992642925,-999.44377386,0.00027009,2]
[312557965,1705992642936,-7623.43491336,0.00027009,2]
[312557966,1705992642945,-155.0,0.00027009,2]
[312557967,1705992642954,-561.56508664,0.0002701,2]
[312557968,1705992642985,-1514.7198819,0.0002701,2]
[312557969,1705992642997,-428.35911654,0.0002701,2]
[312557970,1705992643007,-158.43,0.00027033,2]
[312557972,1705992643016,-267.40183526,0.00027297,2]
[312557973,1705992643035,-930.94625846,0.00027297,2]
[312558002,1705992646302,-405.2,0.00027297,2]
[312558003,1705992646323,-3214.39003075,0.00027297,2]
[312558004,1705992646488,-7810.90407553,0.00027297,2]
[312558005,1705992646498,-245.92,0.00027397,2]
[312558006,1705992646507,-231.45,0.00027397,2]
[312558007,1705992646516,-152.69,0.00027397,2]
[312558008,1705992646526,-152.13,0.00027397,2]
[312558009,1705992646534,-339.4,0.00027397,2]
[312558010,1705992646544,-235.50592447,0.00027397,2]
[312558011,1705992646651,-33.58407553,0.00027397,2]
[312558012,1705992646661,-151.35,0.00027397,2]
[312558013,1705992646671,-7078.81957972,0.00027397,2]
[312558014,1705992646686,-5387.90658026,0.00027397,2]
[312558015,1705992646700,-16388.24384002,0.00027397,2]
[312558016,1705992646710,-2076.92015937,0.00027397,2]
[312558017,1705992646726,-1855.95984063,0.00027397,2]
[312558018,1705992646736,-30554.51068511,0.00027397,2]
[312558019,1705992646750,-1351.36931489,0.00027397,2]
[312558020,1705992646761,-428.84272502,0.000274,2]
[312558021,1705992646776,-275.74727498,0.000274,2]
[312558022,1705992646786,-365.36272562,0.000274,2]
[312558023,1705992646801,-339.22727438,0.000274,2]
[312558024,1705992646812,-504.37064668,0.00027423,2]
[312558025,1705992646821,-595.93,0.0002745,2]
[312558026,1705992646830,-3932.88,0.00027556,2]
[312558027,1705992646842,-1977.0359553,0.00027714,2]
[312558035,1705992671350,4664.21817438,0.0002249,5]
[312558036,1705992865838,370.85,0.00020834,2]
[312558037,1705992960275,-155.0,0.00021326,2]
[312558038,1705992960297,-155.0,0.00021327,2]
[312558039,1705993301802,352.3,0.00020205,2]
[312558040,1705993338900,169.23964452,0.00021236,2]
[312558041,1705993464918,-524.31645799,0.00021329,2]
[312558042,1705993464946,-354.87715265,0.0002133,2]
[312558043,1705993464974,-7421.30474463,0.00021335,2]
[312558044,1705993465002,-150.0,0.00021335,2]
[312558045,1705993465240,-61549.50164473,0.00021336,2]
[312558046,1705993689700,300.0,0.000223,8]
[312558047,1705993691769,700.0,0.000224,8]
[312558048,1705993693858,1100.0,0.000225,8]
[312558049,1705993695940,1500.0,0.000226,8]
[312558050,1705993698027,1900.0,0.000227,8]
[312558051,1705993700115,300.0,0.000228,8]
[312558052,1705993702213,300.0,0.000229,8]
[312558053,1705993706293,-1220.42404824,0.00021336,2]
[312558054,1705993756662,334.68,0.0002018,2]
[312558058,1705993831803,-250.0,0.00022004,2]
[312558059,1705993831816,-413.93622624,0.00022004,2]
[312558060,1705993831969,-188.77377376,0.00022004,2]
[312558061,1705993831980,-484.87,0.00022065,2]
[312558062,1705993831991,-35.04138375,0.00022219,2]
[312558063,1705993837862,-121.43861625,0.00022219,2]
[312558064,1705993837872,-762.75319661,0.00022267,2]
[312558065,1705993837882,-1000.0,0.00022268,2]
[312558066,1705993837891,-334.68,0.00022444,2]
[312558067,1705993837901,-158.43,0.00022491,2]
[312558068,1705993837911,-3646.20954336,0.000225,2]
[312558069,1705993837920,-155.0,0.0002261,2]
[312558070,1705993837930,-206.0,0.0002262,2]
[312558071,1705993837940,-150.0,0.00022799,2]
[312558072,1705993837950,-1876.2885,0.000228,2]
[312558073,1705993837960,-158.18,0.0002281,2]
[312558074,1705993837971,-1171.24472578,0.00022896,2]
[312558075,1705993837982,-480.82000357,0.00022896,2]
[312558076,1705993838006,-1832.70437065,0.00022896,2]
[312558077,1705993838015,-205.43932251,0.00022898,2]
[312558078,1705993838024,-157.5767296,0.00022898,2]
[312558079,1705993838033,-155.4017034,0.00022898,2]
[312558080,1705993838042,-377.94963997,0.00022898,2]
[312558081,1705993838051,-384.62388256,0.00022898,2]
[312558082,1705993838060,-201961.38054355,0.00022899,2]
[312558083,1705993838070,-77470.0194285,0.000229,2]
[312558084,1705993838079,-169.23964452,0.000229,2]
[312558085,1705993838089,-13568.1814878,0.000229,2]
[312558086,1705993838098,-129485.25851519,0.000229,2]
[312558087,1705993838107,-158.95692689,0.000229,2]
[312558088,1705993838116,-1505.04003156,0.000229,2]
[312558089,1705993838125,-15393.43542681,0.000229,2]
[312558090,1705993838134,-1728.6883412,0.000229,2]
[312558091,1705993838142,-617.91044984,0.000229,2]
[312558092,1705993838151,-197.35431103,0.0002299,2]
[312558093,1705993838160,-17575.12184731,0.00022995,2]
[312558094,1705993838169,-3155.22096946,0.00022996,2]
[312558095,1705993838178,-271.36937861,0.00022996,2]
[312558096,1705993838187,-1070.62487515,0.00022996,2]
[312558097,1705993838196,-289.42136299,0.00022996,2]
[312558098,1705993838205,-584.70735985,0.00022996,2]
[312558100,1705993838214,-167.68917721,0.00022996,2]
[312558101,1705993838223,-207.05064307,0.00022996,2]
[312558103,1705993838232,-3666.70188866,0.00022996,2]
[312558105,1705993838242,-5907.06292224,0.00022996,2]
[312558107,1705993838251,-175.68891287,0.00022996,2]
[312558109,1705993838260,-208.02736992,0.00022996,2]
[312558111,1705993838269,-4179.42116703,0.00022996,2]
[312558113,1705993838278,-225.49345276,0.00022996,2]
[312558115,1705993838287,-179.76364008,0.00022997,2]
[312558118,1705993838297,-12311.26507226,0.00022997,2]
[312558120,1705993838307,-495.06799974,0.00022997,2]
[312558122,1705993838317,-197.72412545,0.00022997,2]
[312558124,1705993838327,-243.63008318,0.00022998,2]
[312558125,1705993838337,-224.39848409,0.00022998,2]
[312558127,1705993838347,-160.53662689,0.00022998,2]
[312558130,1705993838356,-233.97687749,0.00022998,2]
[312558132,1705993838365,-487.72032464,0.00022998,2]
[312558133,1705993838374,-156.04881035,0.00022998,2]
[312558135,1705993838383,-2629.74576066,0.00022998,2]
[312558138,1705993838392,-283.32973042,0.00022998,2]
[312558139,1705993838401,-155.67728953,0.00022998,2]
[312558142,1705993838411,-309.78508255,0.00022998,2]
[312558144,1705993838420,-290.81534509,0.00022998,2]
[312558146,1705993838429,-213.58745412,0.00022998,2]
[312558147,1705993838439,-156.18449434,0.00022998,2]
[312558149,1705993838448,-169.69203815,0.00022998,2]
[312558151,1705993838457,-164.92378885,0.00022998,2]
[312558154,1705993838467,-277.64259875,0.00022998,2]
[312558156,1705993838477,-876.79464213,0.00022998,2]
[312558158,1705993838492,-818.94778397,0.00022998,2]
[312558160,1705993838502,-199.0672517,0.00022998,2]
[312558162,1705993838512,-210.5695666,0.00022998,2]
[312558163,1705993838522,-954.40300647,0.00022998,2]
[312558166,1705993838533,-250.93796774,0.00022998,2]
[312558168,1705993838544,-718.23022722,0.00022998,2]
[312558170,1705993838554,-260.79720576,0.00022998,2]
[312558171,1705993838567,-201.54445043,0.00022998,2]
[312558173,1705993838578,-2651.56351548,0.00022998,2]
[312558176,1705993838590,-157.10944669,0.00022998,2]
[312558177,1705993838599,-49805.91,0.00022999,2]
[312558179,1705993838614,-218.77679201,0.00022999,2]
[312558180,1705993838624,-4763.133132,0.00022999,2]
[312558181,1705993838636,-155.87444626,0.00022999,2]
[312558182,1705993838646,-502.91807269,0.00022999,2]
[312558183,1705993838657,-163.88465507,0.00022999,2]
[312558184,1705993838668,-157.44782176,0.00022999,2]
[312558185,1705993838677,-1381.61526335,0.00022999,2]
[312558186,1705993838687,-207.00035398,0.00022999,2]
[312558187,1705993838698,-155.72803693,0.00022999,2]
[312558188,1705993838708,-23534.92442009,0.00022999,2]
[312558189,1705993838719,-183.88994006,0.00022999,2]
[312558190,1705993838729,-204.66572487,0.00022999,2]
[312558191,1705993838739,-307.40072207,0.00022999,2]
[312558192,1705993838750,-158.89606023,0.00022999,2]
[312558193,1705993838761,-155.34181673,0.00022999,2]
[312558194,1705993838771,-156.10438524,0.00022999,2]
[312558195,1705993838782,-1632.05148629,0.00022999,2]
[312558196,1705993838791,-267.15108968,0.00022999,2]
[312558197,1705993838802,-227.06032473,0.00022999,2]
[312558198,1705993838813,-155.29300949,0.00022999,2]
[312558199,1705993838827,-334.13542725,0.00022999,2]
[312558200,1705993838838,-155.42258694,0.00022999,2]
[312558201,1705993838850,-2142.99004246,0.00022999,2]
[312558202,1705993838860,-1969.38848745,0.00022999,2]
[312558203,1705993838871,-150.0,0.00022999,2]
[312558204,1705993838881,-262.27155254,0.00022999,2]
[312558205,1705993838892,-150.0,0.00022999,2]
[312558206,1705993838902,-262.27155254,0.00022999,2]
[312558207,1705993838912,-262.27155254,0.00022999,2]
[312558208,1705993838923,-150.0,0.00022999,2]
[312558209,1705993838934,-262.27155254,0.00022999,2]
[312558210,1705993838944,-150.0,0.00022999,2]
[312558211,1705993838954,-262.27155254,0.00022999,2]
[312558212,1705993838964,-150.0,0.00022999,2]
[312558213,1705993838974,-262.27155254,0.00022999,2]
[312558214,1705993838984,-150.0,0.00022999,2]
[312558215,1705993838994,-168.0482254,0.00023,2]
[312558216,1705993839004,-9789501.2804849,0.00023,2]
[312558217,1705993839043,-2637.91035735,0.00023,2]
[312558218,1705993839055,-47437.4157776,0.00023,2]
[312558234,1705993840995,-745.50914286,0.00023,2]
[312558274,1705993842860,-12617.10625653,0.00023,2]
[312558275,1705993842961,-784885.96835072,0.00023,2]
[312558276,1705993842971,-172940.56623398,0.00023,2]
[312558277,1705993842981,-2276.0,0.00023705,2]
[312558278,1705993842990,-2515.059,0.00023705,2]
[312558279,1705993843000,-484.87,0.00023708,2]
[312558280,1705993843010,-1358.0,0.00023871,2]
[312558281,1705993843019,-279.791,0.00023871,2]
[312558282,1705993843029,-821.093,0.00023871,2]
[312558283,1705993843038,-837.0,0.00023871,2]
[312558284,1705993843048,-947.0,0.00023871,2]
[312558285,1705993843057,-1856.0,0.00023871,2]
[312558286,1705993843067,-219.258,0.00023871,2]
[312558287,1705993843077,-1239.987,0.00023871,2]
[312558288,1705993843087,-1262.28,0.00023871,2]
[312558289,1705993843097,-707.791,0.00023871,2]
[312558290,1705993843107,-426.0,0.00023871,2]
[312558291,1705993843116,-998.0,0.00023871,2]
[312558292,1705993843126,-1936.0,0.00023871,2]
[312558293,1705993843135,-185.043,0.00023871,2]
[312558294,1705993843145,-316.95,0.00023871,2]
[312558295,1705993843156,-151.64,0.00024594,2]
[312558296,1705993843166,-250.0,0.00024658,2]
[312558297,1705993843176,-334.68,0.00024708,2]
[312558299,1705993843186,-602.71,0.00024754,2]
[312558300,1705993843196,-350.0,0.00025,3]
[312558301,1705993843206,-1000.0,0.00025051,2]
[312558302,1705993843217,-206.0,0.0002529,6]
[312558303,1705993843226,-484.87,0.00025352,2]
[312558304,1705993843241,-965.0,0.00025805,2]
[312558305,1705993843251,-292.03,0.00025978,2]
[312558306,1705993843260,-186.7361,0.00026272,2]
[312558307,1705993843270,-3172.40086865,0.00026372,7]
[312558308,1705993843279,-1078.25,0.00026575,2]
[312558309,1705993843288,-1535.678,0.00026705,2]
[312558310,1705993843298,-158.43,0.00026722,2]
[312558311,1705993843308,-800.0,0.00026784,2]
[312558312,1705993843319,-159.34286042,0.000268,2]
[312558313,1705993843329,-835.0,0.00026871,2]
[312558314,1705993843339,-897.622,0.00026871,2]
[312558315,1705993843349,-1853.0,0.00026871,2]
[312558316,1705993843359,-1233.0,0.00026871,2]
[312558317,1705993843369,-1251.0,0.00026871,2]
[312558318,1705993843379,-804.184,0.00026871,2]
[312558319,1705993843389,-1933.0,0.00026871,2]
[312558320,1705993843398,-800.0,0.00026961,2]
[312558321,1705993843408,-334.68,0.00026971,2]
[312558322,1705993843418,-484.87,0.00026996,2]
[312558323,1705993843427,-400.0,0.00027,3]
[312558324,1705993843437,-292.16,0.00027078,2]
[312558325,1705993843446,-409.01,0.00027078,2]
[312558326,1705993843456,-300.0,0.00027078,2]
[312558327,1705993843468,-292.16,0.00027078,2]
[312558328,1705993843478,-292.16,0.00027078,2]
[312558329,1705993843487,-409.01,0.00027078,2]
[312558330,1705993843498,-409.01,0.00027078,2]
[312558331,1705993843508,-292.16,0.00027078,2]
[312558332,1705993843518,-292.16,0.00027078,2]
[312558333,1705993843528,-728.56,0.00027078,2]
[312558334,1705993843538,-158.18,0.00027101,2]
[312558335,1705993843548,-800.0,0.00027138,2]
[312558336,1705993843558,-800.0,0.00027315,2]
[312558337,1705993843567,-260.31,0.00027397,2]
[312558338,1705993843580,-197.76,0.00027397,2]
[312558339,1705993843590,-173.0,0.00027397,4]
[312558340,1705993843599,-2948.6,0.00027397,2]
[312558341,1705993843609,-165.45,0.00027397,2]
[312558342,1705993843619,-563.67,0.000274,2]
[312558343,1705993843628,-563.67,0.000274,2]
[312558344,1705993843638,-563.67,0.000274,2]
[312558345,1705993843648,-563.67,0.000274,2]
[312558346,1705993843658,-563.67,0.000274,2]
[312558347,1705993843668,-563.67,0.000274,2]
[312558348,1705993843677,-563.67,0.000274,2]
[312558349,1705993843687,-563.67,0.000274,2]
[312558350,1705993843697,-563.67,0.000274,2]
[312558351,1705993843706,-563.67,0.000274,2]
[312558352,1705993843715,-800.0,0.00027491,3]
[312558353,1705993843725,-602.71,0.00027505,2]
[312558354,1705993843735,-2948.6,0.00027556,2]
[312558355,1705993843749,-365.78380243,0.00027713,2]
[312558356,1705993843760,-162.50056532,0.00027713,2]
[312558357,1705993843770,-150.01,0.00027713,2]
[312558358,1705993843780,-3298.13430336,0.00027713,2]
[312558359,1705993843890,-2948.6,0.00027714,2]
[312558360,1705993843900,-3249.30448372,0.00027714,2]
[312558361,1705993843909,-262.27155254,0.00027714,2]
[312558362,1705993843918,-150.0,0.00027714,2]
[312558363,1705993843927,-3822.2472956,0.00027715,2]
[312558364,1705993843936,-2318.6060413,0.00027715,2]
[312558365,1705993843946,-87481.0133149,0.00027715,2]
[312558366,1705993843955,-4888.4842737,0.00027715,2]
[312558367,1705993843964,-339.4,0.00027758,2]
[312558368,1705993843973,-269.09,0.00027758,2]
[312558369,1705993843983,-260.31,0.00027758,2]
[312558370,1705993843992,-197.76,0.00027758,2]
[312558371,1705993844001,-1000.0,0.00027834,2]
[312558372,1705993844010,-2948.6,0.00027872,2]
[312558373,1705993844020,-206.0,0.0002796,10]
[312558374,1705993844030,-151.35,0.00027968,2]
[312558375,1705993844039,-2948.6,0.0002803,2]
[312558376,1705993844048,-339.4,0.00028118,2]
[312558377,1705993844057,-269.09,0.00028118,2]
[312558378,1705993844066,-260.31,0.00028118,2]
[312558379,1705993844076,-197.76,0.00028118,2]
[312558380,1705993844084,-150.00000003,0.0002816,2]
[312558381,1705993844093,-2948.6,0.00028189,2]
[312558382,1705993844102,-2948.6,0.00028347,2]
[312558383,1705993844111,-165.45,0.00028376,2]
[312558384,1705993844120,-339.4,0.00028479,2]
[312558385,1705993844129,-269.09,0.00028479,2]
[312558386,1705993844138,-260.31,0.00028479,2]
[312558387,1705993844147,-197.76,0.00028479,2]
[312558388,1705993844155,-2948.6,0.00028505,2]
[312558389,1705993844165,-151.35,0.00028539,2]
[312558390,1705993844175,-484.87,0.0002864,2]
[312558391,1705993844184,-2948.6,0.00028664,2]
[312558392,1705993844193,-825.19424594,0.000288,2]
[312558393,1705993844203,-2948.6,0.00028822,2]
[312558394,1705993844212,-339.4,0.00028839,2]
[312558395,1705993844222,-269.09,0.00028839,2]
[312558396,1705993844231,-260.31,0.00028839,2]
[312558397,1705993844240,-197.76,0.00028839,2]
[312558398,1705993844249,-249.97494367,0.00029,15]
[312558399,1705993844259,-450.0,0.00029,3]
[312558400,1705993844268,-151.35,0.0002911,2]
[312558401,1705993844277,-339.4,0.000292,2]
[312558402,1705993844286,-269.09,0.000292,2]
[312558403,1705993844295,-260.31,0.000292,2]
[312558404,1705993844304,-197.76,0.000292,2]
[312558405,1705993844313,-334.68,0.00029235,2]
[312558406,1705993844324,-165.45,0.00029354,2]
[312558407,1705993844333,-150.77913299,0.000294,2]
[312558408,1705993844342,-150.77913299,0.000294,2]
[312558409,1705993844352,-150.77913299,0.000294,2]
[312558410,1705993844362,-150.77913299,0.000294,2]
[312558411,1705993844371,-150.77913299,0.000294,2]
[312558412,1705993844380,-150.77913299,0.000294,2]
[312558413,1705993844389,-150.77913299,0.000294,2]
[312558414,1705993844398,-339.4,0.0002956,2]
[312558415,1705993844407,-269.09,0.0002956,2]